fUST/lending_fUST_20250701
["ID","MTS","AMOUNT","RATE_DAILY","PERIOD"]
[368736371,1751337041934,-460.0,0.00019272,2]
[368736372,1751337041943,-460.0,0.00019272,2]
[368736373,1751337041953,-1788.74,0.00019272,2]
[368736374,1751337041963,-2476.94,0.00019272,2]
[368736375,1751337041973,-2036.86,0.00019272,2]
[368736376,1751337041983,-460.0,0.00019272,2]
[368736377,1751337041992,-935.68,0.00019272,2]
[368736378,1751337042003,-460.0,0.00019272,2]
[368736379,1751337042012,-576.05,0.00019272,2]
[368736380,1751337042022,-195.58,0.00019272,2]
[368736381,1751337042032,-460.0,0.00019272,2]
[368736382,1751337042043,-460.0,0.00019273,2]
[368736383,1751337042053,-460.0,0.00019273,2]
[368736384,1751337042062,-223.21839789,0.00019273,2]
[368736385,1751337042072,-460.0,0.00019273,2]
[368736386,1751337042084,-585.27,0.00019273,2]
[368736387,1751337042095,-460.0,0.00019273,2]
[368736388,1751337042104,-460.0,0.00019273,2]
[368736389,1751337042114,-460.0,0.00019273,2]
[368736390,1751337042124,-543.21,0.00019273,2]
[368736391,1751337042133,-460.0,0.00019273,2]
[368736392,1751337042143,-1813.13,0.00019273,2]
[368736393,1751337042153,-460.0,0.00019273,2]
[368736394,1751337042164,-460.0,0.00019273,2]
[368736395,1751337042174,-460.0,0.00019273,2]
[368736396,1751337042183,-460.0,0.00019273,2]
[368736397,1751337042192,-476.21,0.00019273,2]
[368736398,1751337042202,-595.55,0.00019273,2]
[368736399,1751337042212,-160.58282189,0.00019273,2]
[368736400,1751337042221,-460.0,0.00019273,2]
[368736401,1751337042231,-460.0,0.00019273,2]
[368736402,1751337042240,-460.0,0.00019273,2]
[368736403,1751337042250,-460.0,0.00019273,2]
[368736404,1751337042260,-460.0,0.00019273,2]
[368736405,1751337042270,-464.06255591,0.00019274,2]
[368736406,1751337042279,-460.0,0.00019274,2]
[368736407,1751337042289,-460.0,0.00019274,2]
[368736408,1751337042298,-460.0,0.00019274,2]
[368736409,1751337042308,-597.4643246,0.00019274,2]
[368736410,1751337042320,-485.41,0.00019274,2]
[368736411,1751337042330,-460.0,0.00019274,2]
[368736412,1751337042340,-460.0,0.00019274,2]
[368736413,1751337042350,-460.0,0.00019274,2]
[368736414,1751337042359,-900.2,0.00019274,2]
[368736415,1751337042368,-460.0,0.00019274,2]
[368736416,1751337042377,-385.70676851,0.00019274,2]
[368736417,1751337042386,-177.22497266,0.00019274,2]
[368736418,1751337042396,-1592.0,0.00019274,2]
[368736419,1751337042405,-915.52,0.00019274,2]
[368736420,1751337042415,-2903.42,0.00019274,2]
[368736421,1751337042424,-460.0,0.00019274,2]
[368736422,1751337042433,-460.0,0.00019274,2]
[368736423,1751337042442,-662.92,0.00019274,2]
[368736424,1751337042452,-1450.0,0.00019274,2]
[368736425,1751337042461,-516.56,0.00019274,2]
[368736426,1751337042470,-460.0,0.00019274,2]
[368736427,1751337042479,-2945.16,0.00019274,2]
[368736428,1751337042488,-1087.5,0.00019274,2]
[368736429,1751337042498,-460.0,0.00019274,2]
[368736430,1751337042507,-1189.54,0.00019274,2]
[368736431,1751337042516,-460.0,0.00019274,2]
[368736432,1751337042525,-460.0,0.00019275,2]
[368736433,1751337042536,-460.0,0.00019276,2]
[368736434,1751337042545,-460.0,0.00019276,2]
[368736435,1751337042554,-460.0,0.00019276,2]
[368736436,1751337042563,-460.0,0.00019276,2]
[368736437,1751337042572,-3653.97220895,0.00019314,2]
[368736438,1751337042581,-399.0,0.00019446,2]
[368736439,1751337042591,-853.82121164,0.00019448,2]
[368736440,1751337042601,-500.0,0.00019479,2]
[368736441,1751337042611,-500.0,0.00019506,2]
[368736442,1751337042620,-3653.97220895,0.00019521,2]
[368736443,1751337042632,-500.0,0.00019534,2]
[368736444,1751337042641,-1297.73,0.00019545,2]
[368736445,1751337042654,-460.0,0.00019545,2]
[368736446,1751337042664,-671.74,0.00019546,2]
[368736447,1751337042674,-1712.85,0.00019546,2]
[368736448,1751337042684,-1642.06,0.00019546,2]
[368736449,1751337042695,-460.0,0.00019546,2]
[368736450,1751337042705,-460.0,0.00019546,2]
[368736451,1751337042715,-1788.74,0.00019546,2]
[368736452,1751337042725,-2476.94,0.00019546,2]
[368736453,1751337042736,-2036.86,0.00019546,2]
[368736454,1751337042747,-460.0,0.00019546,2]
[368736455,1751337042756,-935.68,0.00019546,2]
[368736456,1751337042766,-540.98,0.00019546,2]
[368736457,1751337042776,-460.0,0.00019546,2]
[368736458,1751337042786,-464.27621198,0.00019547,2]
[368736459,1751337042796,-463.87119681,0.00019547,2]
[368736460,1751337042805,-460.0,0.00019547,2]
[368736461,1751337042815,-460.0,0.00019547,2]
[368736462,1751337042824,-460.0,0.00019547,2]
[368736463,1751337042835,-460.0,0.00019547,2]
[368736464,1751337042844,-543.21,0.00019547,2]
[368736465,1751337042858,-460.0,0.00019547,2]
[368736466,1751337042869,-1813.13,0.00019547,2]
[368736467,1751337042876,-460.0,0.00019547,2]
[368736468,1751337042887,-460.0,0.00019547,2]
[368736469,1751337042897,-460.0,0.00019547,2]
[368736470,1751337042907,-460.0,0.00019547,2]
[368736471,1751337042918,-476.21,0.00019547,2]
[368736472,1751337042929,-595.55,0.00019547,2]
[368736473,1751337042939,-460.0,0.00019547,2]
[368736474,1751337042948,-460.0,0.00019547,2]
[368736475,1751337042959,-518.44270392,0.00019547,2]
[368736476,1751337042969,-460.0,0.00019547,2]
[368736477,1751337042981,-460.0,0.00019547,2]
[368736478,1751337042990,-1130.74792909,0.00019548,2]
[368736479,1751337043000,-510.26719927,0.00019548,2]
[368736480,1751337043010,-1008.23550061,0.00019548,2]
[368736481,1751337043020,-460.0,0.00019548,2]
[368736482,1751337043029,-460.0,0.00019548,2]
[368736483,1751337043038,-460.0,0.00019548,2]
[368736484,1751337043048,-485.41,0.00019548,2]
[368736485,1751337043057,-460.0,0.00019548,2]
[368736486,1751337043067,-460.0,0.00019548,2]
[368736487,1751337043077,-460.0,0.00019548,2]
[368736488,1751337043087,-900.2,0.00019548,2]
[368736489,1751337043097,-460.0,0.00019548,2]
[368736490,1751337043106,-1592.0,0.00019548,2]
[368736491,1751337043116,-915.52,0.00019548,2]
[368736492,1751337043126,-2903.42,0.00019548,2]
[368736494,1751337043136,-460.0,0.00019548,2]
[368736496,1751337043146,-290.97163158,0.00019548,2]
[368736498,1751337043156,-662.92,0.00019548,2]
[368736500,1751337043171,-1450.0,0.00019548,2]
[368736502,1751337043183,-516.56,0.00019548,2]
[368736504,1751337043193,-460.0,0.00019548,2]
[368736506,1751337043203,-2945.16,0.00019548,2]
[368736508,1751337043214,-1087.5,0.00019548,2]
[368736510,1751337043224,-460.0,0.00019548,2]
[368736521,1751337043234,-1189.54,0.00019548,2]
[368736523,1751337043338,-460.0,0.00019548,2]
[368736525,1751337043348,-346.99004464,0.00019549,2]
[368736527,1751337043359,-460.0,0.0001955,2]
[368736530,1751337043369,-460.0,0.0001955,2]
[368736532,1751337043379,-460.0,0.0001955,2]
[368736534,1751337043388,-460.0,0.0001955,2]
[368736536,1751337043398,-500.0,0.00019561,2]
[368736538,1751337043409,-151.0,0.00019561,2]
[368736540,1751337043420,-500.0,0.00019561,2]
[368736542,1751337043430,-500.0,0.00019567,2]
[368736545,1751337043440,-181.09163339,0.00019567,2]
[368736547,1751337043449,-1000.0,0.00019584,2]
[368736549,1751337043459,-500.0,0.00019588,2]
[368736551,1751337043468,-151.56350742,0.00019588,2]
[368736553,1751337043477,-500.0,0.00019588,2]
[368736555,1751337043487,-202.026377,0.00019588,2]
[368736557,1751337043497,-500.0,0.00019589,2]
[368736559,1751337043507,-218.0,0.00019613,2]
[368736561,1751337043516,-500.0,0.00019615,2]
[368736563,1751337043526,-500.0,0.00019616,2]
[368736565,1751337043536,-500.0,0.00019616,2]
[368736567,1751337043546,-500.0,0.00019643,2]
[368736569,1751337043555,-500.0,0.00019643,2]
[368736571,1751337043565,-500.0,0.00019643,2]
[368736573,1751337043574,-151.0,0.0001967,2]
[368736575,1751337043583,-151.0,0.0001967,2]
[368736577,1751337043592,-500.0,0.0001967,2]
[368736579,1751337043602,-500.0,0.00019671,2]
[368736581,1751337043612,-500.0,0.00019671,2]
[368736583,1751337043622,-159.64434514,0.00019697,2]
[368736585,1751337043631,-152.35651353,0.00019697,2]
[368736587,1751337043640,-500.0,0.00019698,2]
[368736589,1751337043649,-500.0,0.00019698,2]
[368736591,1751337043659,-500.0,0.00019698,2]
[368736593,1751337043668,-500.0,0.00019725,2]
[368736595,1751337043677,-500.0,0.00019725,2]
[368736597,1751337043687,-515.55107472,0.00019726,2]
[368736599,1751337043696,-3653.97220895,0.00019728,2]
[368736601,1751337043706,-474.89173242,0.00019752,2]
[368736603,1751337043715,-500.0,0.00019753,2]
[368736605,1751337043725,-500.0,0.0001978,2]
[368736607,1751337043734,-368.56073712,0.00019808,2]
[368736609,1751337043743,-1297.73,0.00019819,2]
[368736611,1751337043753,-460.0,0.00019819,2]
[368736613,1751337043763,-671.74,0.0001982,2]
[368736614,1751337043773,-1712.85,0.0001982,2]
[368736617,1751337043783,-1642.06,0.0001982,2]
[368736619,1751337043793,-460.0,0.0001982,2]
[368736621,1751337043802,-460.0,0.0001982,2]
[368736623,1751337043811,-1788.74,0.0001982,2]
[368736625,1751337043820,-2476.94,0.0001982,2]
[368736627,1751337043829,-2036.86,0.0001982,2]
[368736629,1751337043839,-460.0,0.0001982,2]
[368736631,1751337043848,-935.68,0.0001982,2]
[368736633,1751337043858,-460.0,0.0001982,2]
[368736635,1751337043867,-460.0,0.00019821,2]
[368736637,1751337043876,-460.0,0.00019821,2]
[368736639,1751337043886,-460.0,0.00019821,2]
[368736641,1751337043896,-460.0,0.00019821,2]
[368736643,1751337043905,-543.21,0.00019821,2]
[368736644,1751337043915,-460.0,0.00019821,2]
[368736646,1751337043924,-1813.13,0.00019821,2]
[368736648,1751337043935,-460.0,0.00019821,2]
[368736650,1751337043944,-460.0,0.00019821,2]
[368736652,1751337043953,-313.23527036,0.00019821,2]
[368736654,1751337043961,-460.0,0.00019821,2]
[368736656,1751337043969,-476.21,0.00019821,2]
[368736658,1751337043978,-595.55,0.00019821,2]
[368736660,1751337043987,-460.0,0.00019821,2]
[368736662,1751337043996,-460.0,0.00019821,2]
[368736664,1751337044005,-460.0,0.00019821,2]
[368736666,1751337044015,-460.0,0.00019821,2]
[368736668,1751337044025,-460.0,0.00019822,2]
[368736670,1751337044036,-460.0,0.00019822,2]
[368736672,1751337044046,-460.0,0.00019822,2]
[368736675,1751337044059,-485.41,0.00019822,2]
[368736677,1751337044069,-460.0,0.00019822,2]
[368736679,1751337044078,-460.0,0.00019822,2]
[368736681,1751337044087,-460.0,0.00019822,2]
[368736683,1751337044097,-900.2,0.00019822,2]
[368736684,1751337044107,-460.0,0.00019822,2]
[368736686,1751337044116,-1592.0,0.00019822,2]
[368736688,1751337044125,-915.52,0.00019822,2]
[368736691,1751337044136,-2903.42,0.00019822,2]
[368736693,1751337044146,-460.0,0.00019822,2]
[368736695,1751337044156,-662.92,0.00019822,2]
[368736697,1751337044167,-1450.0,0.00019822,2]
[368736698,1751337044176,-516.56,0.00019822,2]
[368736701,1751337044187,-460.0,0.00019822,2]
[368736703,1751337044196,-2945.16,0.00019822,2]
[368736705,1751337044207,-1087.5,0.00019822,2]
[368736707,1751337044217,-460.0,0.00019822,2]
[368736709,1751337044226,-1189.54,0.00019822,2]
[368736710,1751337044236,-175.43,0.00019822,2]
[368736712,1751337044247,-460.0,0.00019824,2]
[368736714,1751337044257,-233.84771641,0.00019824,2]
[368736716,1751337044266,-376.62650012,0.00019824,2]
[368736718,1751337044275,-460.0,0.00019824,2]
[368736720,1751337044285,-420.0,0.00019826,2]
[368736722,1751337044294,-302.00601064,0.0001988,2]
[368736724,1751337044304,-151.0,0.000199,2]
[368736726,1751337044313,-3653.97220895,0.00019934,2]
[368736728,1751337044322,-853.82121164,0.00019997,2]
[368736730,1751337044331,-947.08470196,0.00020017,2]
[368736732,1751337044341,-940.0,0.00020038,2]
[368736734,1751337044350,-940.0,0.0002004,2]
[368736736,1751337044360,-1297.73,0.00020093,2]
[368736738,1751337044369,-460.0,0.00020093,2]
[368736740,1751337044379,-671.74,0.00020094,2]
[368736742,1751337044389,-1712.85,0.00020094,2]
[368736744,1751337044399,-1642.06,0.00020094,2]
[368736746,1751337044408,-460.0,0.00020094,2]
[368736748,1751337044418,-254.61280412,0.00020094,2]
[368736750,1751337044428,-1788.74,0.00020094,2]
[368736752,1751337044438,-1256.31605987,0.00020094,2]
[368736755,1751337044455,-1220.62394013,0.00020094,2]
[368736757,1751337044464,-2036.86,0.00020094,2]
[368736759,1751337044474,-480.33886842,0.00020094,2]
[368736761,1751337044483,-935.68,0.00020094,2]
[368736763,1751337044494,-460.0,0.00020094,2]
[368736765,1751337044504,-153.80461064,0.00020095,2]
[368736767,1751337044514,-460.0,0.00020095,2]
[368736769,1751337044523,-460.0,0.00020095,2]
[368736770,1751337044533,-460.0,0.00020095,2]
[368736772,1751337044543,-543.21,0.00020095,2]
[368736775,1751337044552,-460.0,0.00020095,2]
[368736777,1751337044563,-1813.13,0.00020095,2]
[368736778,1751337044572,-460.0,0.00020095,2]
[368736780,1751337044582,-460.0,0.00020095,2]
[368736782,1751337044591,-460.0,0.00020095,2]
[368736784,1751337044600,-476.21,0.00020095,2]
[368736786,1751337044610,-595.55,0.00020095,2]
[368736788,1751337044620,-410.10166658,0.00020095,2]
[368736790,1751337044629,-460.0,0.00020095,2]
[368736792,1751337044638,-460.0,0.00020095,2]
[368736794,1751337044648,-460.0,0.00020095,2]
[368736796,1751337044657,-468.28897007,0.00020096,2]
[368736798,1751337044666,-460.0,0.00020096,2]
[368736800,1751337044677,-460.0,0.00020096,2]
[368736802,1751337044687,-485.41,0.00020096,2]
[368736804,1751337044696,-460.0,0.00020096,2]
[368736806,1751337044706,-460.0,0.00020096,2]
[368736808,1751337044716,-460.0,0.00020096,2]
[368736810,1751337044725,-900.2,0.00020096,2]
[368736812,1751337044734,-460.0,0.00020096,2]
[368736814,1751337044744,-1592.0,0.00020096,2]
[368736816,1751337044754,-915.52,0.00020096,2]
[368736818,1751337044763,-2903.42,0.00020096,2]
[368736820,1751337044773,-463.81098168,0.00020096,2]
[368736822,1751337044783,-662.92,0.00020096,2]
[368736824,1751337044792,-1450.0,0.00020096,2]
[368736826,1751337044802,-516.56,0.00020096,2]
[368736828,1751337044812,-460.0,0.00020096,2]
[368736830,1751337044821,-2945.16,0.00020096,2]
[368736832,1751337044830,-1087.5,0.00020096,2]
[368736834,1751337044840,-460.0,0.00020096,2]
[368736836,1751337044850,-1189.54,0.00020096,2]
[368736838,1751337044859,-460.0,0.00020098,2]
[368736840,1751337044869,-365.75775554,0.00020098,2]
[368736842,1751337044878,-500.0,0.00020109,2]
[368736844,1751337044889,-1500.0,0.00020132,2]
[368736855,1751337044990,-437.78108302,0.00020141,2]
[368736858,1751337045003,-250.58651428,0.00020141,2]
[368736860,1751337045015,-429.46065795,0.00020141,2]
[368736862,1751337045027,-2536.1439537,0.00020141,2]
[368736864,1751337045037,-500.0,0.00020172,2]
[368736866,1751337045046,-444.69395018,0.00020172,2]
[368736869,1751337045063,-2611.37986323,0.00018657,2]
[368736871,1751337045073,-4555.30604982,0.00020172,2]
[368736873,1751337045082,-500.0,0.00020172,2]
[368736875,1751337045093,-158.75452295,0.00020172,2]
[368736877,1751337045102,-500.0,0.00020172,2]
[368736879,1751337045111,-500.0,0.00020172,2]
[368736880,1751337045121,-500.0,0.00020172,2]
[368736882,1751337045131,-207.4,0.00020172,2]
[368736884,1751337045140,-470.11513765,0.00020172,2]
[368736886,1751337045149,-500.0,0.00020172,2]
[368736888,1751337045159,-500.0,0.00020172,2]
[368736890,1751337045172,-500.0,0.00020172,2]
[368736892,1751337045182,-500.0,0.00020172,2]
[368736894,1751337045191,-500.0,0.00020172,2]
[368736896,1751337045201,-500.0,0.00020172,2]
[368736898,1751337045213,-500.0,0.00020172,2]
[368736900,1751337045223,-500.0,0.00020172,2]
[368736902,1751337045232,-500.0,0.00020172,2]
[368736905,1751337045244,-500.0,0.00020172,2]
[368736907,1751337045254,-12529.04915699,0.00020172,2]
[368736909,1751337045263,-500.0,0.00020172,2]
[368736911,1751337045273,-500.0,0.00020172,2]
[368736913,1751337045282,-500.0,0.00020172,2]
[368736915,1751337045291,-500.0,0.00020172,2]
[368736917,1751337045301,-500.0,0.00020172,2]
[368736918,1751337045310,-500.0,0.00020172,2]
[368736921,1751337045321,-500.0,0.00020172,2]
[368736923,1751337045331,-500.0,0.00020172,2]
[368736925,1751337045341,-500.0,0.00020172,2]
[368736927,1751337045350,-500.0,0.00020172,2]
[368736929,1751337045360,-513.16311584,0.00020172,2]
[368736931,1751337045369,-500.0,0.00020172,2]
[368736933,1751337045379,-500.0,0.00020172,2]
[368736935,1751337045388,-500.0,0.00020172,2]
[368736937,1751337045398,-500.0,0.00020172,2]
[368736939,1751337045407,-500.0,0.00020172,2]
[368736941,1751337045417,-500.0,0.00020172,2]
[368736943,1751337045426,-500.0,0.00020172,2]
[368736945,1751337045436,-500.0,0.00020172,2]
[368736947,1751337045446,-504.25999982,0.00020172,2]
[368736949,1751337045456,-338.281818,0.00020187,2]
[368736951,1751337045465,-219.0,0.00020274,3]
[368736953,1751337045475,-940.0,0.00020319,2]
[368736955,1751337045485,-3653.97220895,0.00020348,3]
[368736957,1751337045494,-1297.73,0.00020367,2]
[368736958,1751337045504,-460.0,0.00020367,2]
[368736960,1751337045513,-671.74,0.00020368,2]
[368736962,1751337045523,-1712.85,0.00020368,2]
[368736964,1751337045532,-1642.06,0.00020368,2]
[368736966,1751337045542,-460.0,0.00020368,2]
[368736968,1751337045551,-1788.74,0.00020368,2]
[368736970,1751337045561,-2476.94,0.00020368,2]
[368736972,1751337045570,-2036.86,0.00020368,2]
[368736974,1751337045580,-935.68,0.00020368,2]
[368736976,1751337045591,-460.0,0.00020368,2]
[368736978,1751337045602,-460.0,0.00020369,2]
[368736980,1751337045612,-460.0,0.00020369,2]
[368736982,1751337045623,-460.0,0.00020369,2]
[368736984,1751337045632,-543.21,0.00020369,2]
[368736986,1751337045642,-460.0,0.00020369,2]
[368736988,1751337045652,-1813.13,0.00020369,2]
[368736990,1751337045662,-460.0,0.00020369,2]
[368736992,1751337045672,-460.0,0.00020369,2]
[368736994,1751337045684,-460.0,0.00020369,2]
[368736996,1751337045694,-476.21,0.00020369,2]
[368736998,1751337045703,-595.55,0.00020369,2]
[368737000,1751337045713,-460.0,0.00020369,2]
[368737002,1751337045723,-460.0,0.00020369,2]
[368737004,1751337045732,-460.0,0.00020369,2]
[368737008,1751337045751,-460.0,0.0002037,2]
[368737010,1751337045770,-485.41,0.0002037,2]
[368737012,1751337045785,-460.0,0.0002037,2]
[368737013,1751337045801,-460.0,0.0002037,2]
[368737014,1751337045820,-460.0,0.0002037,2]
[368737015,1751337045837,-900.2,0.0002037,2]
[368737016,1751337045854,-370.50142813,0.0002037,2]
[368737017,1751337045873,-1592.0,0.0002037,2]
[368737018,1751337045888,-915.52,0.0002037,2]
[368737019,1751337045904,-2903.42,0.0002037,2]
[368737020,1751337045922,-662.92,0.0002037,2]
[368737021,1751337045937,-1450.0,0.0002037,2]
[368737022,1751337045952,-516.56,0.0002037,2]
[368737023,1751337045965,-460.0,0.0002037,2]
[368737024,1751337045980,-2945.16,0.0002037,2]
[368737025,1751337045996,-1087.5,0.0002037,2]
[368737026,1751337046014,-460.0,0.0002037,2]
[368737027,1751337046032,-1189.54,0.0002037,2]
[368737028,1751337046052,-460.0,0.00020372,2]
[368737029,1751337046065,-501.07120233,0.00020373,2]
[368737030,1751337046077,-146864.99322007,0.000204,2]
[368737031,1751337046092,-151.910714,0.000204,2]
[368737033,1751337046109,-151.0,0.000204,2]
[368737036,1751337046123,-151.0,0.000204,2]
[368737038,1751337046138,-153.582542,0.000204,2]
[368737041,1751337046155,-151.0,0.000204,2]
[368737043,1751337046170,-151.0,0.000204,2]
[368737045,1751337046183,-151.0,0.000204,2]
[368737048,1751337046198,-151.0,0.000204,2]
[368737050,1751337046214,-151.774939,0.000204,2]
[368737053,1751337046228,-151.0,0.000204,2]
[368737055,1751337046242,-151.0,0.000204,2]
[368737057,1751337046255,-151.0,0.000204,2]
[368737060,1751337046268,-151.346108,0.000204,2]
[368737062,1751337046282,-151.0,0.000204,2]
[368737065,1751337046296,-151.0,0.000204,2]
[368737067,1751337046308,-151.0,0.000204,2]
[368737069,1751337046322,-153.450408,0.000204,2]
[368737072,1751337046336,-151.0,0.000204,2]
[368737074,1751337046351,-151.0,0.000204,2]
[368737077,1751337046365,-306.276149,0.000204,2]
[368737079,1751337046379,-306.276149,0.000204,2]
[368737082,1751337046394,-151.0,0.000204,2]
[368737085,1751337046408,-151.0,0.000204,2]
[368737089,1751337046422,-151.0,0.000204,2]
[368737094,1751337046437,-151.0,0.000204,2]
[368737096,1751337046451,-182.542265,0.000204,2]
[368737099,1751337046466,-151.0,0.000204,2]
[368737101,1751337046477,-151.0,0.000204,2]
[368737103,1751337046487,-154.222511,0.000204,2]
[368737105,1751337046497,-153.046098,0.000204,2]
[368737107,1751337046507,-151.0,0.000204,2]
[368737109,1751337046516,-151.0,0.000204,2]
[368737111,1751337046527,-151.981184,0.000204,2]
[368737113,1751337046537,-151.738763,0.000204,2]
[368737115,1751337046547,-151.0,0.000204,2]
[368737117,1751337046557,-151.0,0.000204,2]
[368737119,1751337046566,-151.0,0.000204,2]
[368737121,1751337046576,-761.804,0.00020465,2]
[368737123,1751337046586,-853.82121164,0.00020545,2]
[368737125,1751337046596,-1000.0,0.00020546,5]
[368737127,1751337046606,-500.0,0.00020547,14]
[368737129,1751337046617,-3653.97220895,0.00020555,3]
[368737131,1751337046626,-940.0,0.00020579,2]
[368737133,1751337046637,-3493.48,0.000206,2]
[368737135,1751337046646,-180.0,0.00020615,4]
[368737137,1751337046656,-968.222,0.0002063,2]
[368737139,1751337046666,-1297.73,0.00020641,2]
[368737142,1751337046675,-460.0,0.00020641,2]
[368737144,1751337046686,-671.74,0.00020642,2]
[368737146,1751337046697,-1712.85,0.00020642,2]
[368737148,1751337046707,-1642.06,0.00020642,2]
[368737150,1751337046718,-406.27356867,0.00020642,2]
[368737170,1751337046920,-1788.74,0.00020642,2]
[368737173,1751337046937,-2476.94,0.00020642,2]
[368737175,1751337046947,-2036.86,0.00020642,2]
[368737177,1751337046958,-935.68,0.00020642,2]
[368737179,1751337046968,-460.0,0.00020642,2]
[368737181,1751337046978,-571.83225832,0.00020643,2]
[368737183,1751337046987,-460.0,0.00020643,2]
[368737185,1751337046997,-460.0,0.00020643,2]
[368737187,1751337047008,-543.21,0.00020643,2]
[368737190,1751337047017,-460.0,0.00020643,2]
[368737192,1751337047030,-1813.13,0.00020643,2]
[368737194,1751337047040,-460.0,0.00020643,2]
[368737196,1751337047050,-460.0,0.00020643,2]
[368737198,1751337047060,-460.0,0.00020643,2]
[368737200,1751337047070,-476.21,0.00020643,2]
[368737202,1751337047079,-595.55,0.00020643,2]
[368737204,1751337047089,-460.0,0.00020643,2]
[368737206,1751337047100,-460.0,0.00020643,2]
[368737207,1751337047110,-460.0,0.00020643,2]
[368737209,1751337047119,-460.0,0.00020644,2]
[368737211,1751337047129,-485.41,0.00020644,2]
[368737213,1751337047138,-460.0,0.00020644,2]
[368737215,1751337047148,-449.47127992,0.00020644,2]
[368737217,1751337047158,-460.0,0.00020644,2]
[368737219,1751337047170,-900.2,0.00020644,2]
[368737221,1751337047180,-1592.0,0.00020644,2]
[368737224,1751337047191,-915.52,0.00020644,2]
[368737226,1751337047200,-2903.42,0.00020644,2]
[368737227,1751337047211,-662.92,0.00020644,2]
[368737230,1751337047221,-1450.0,0.00020644,2]
[368737232,1751337047231,-516.56,0.00020644,2]
[368737233,1751337047242,-460.0,0.00020644,2]
[368737235,1751337047252,-2945.16,0.00020644,2]
[368737237,1751337047261,-1087.5,0.00020644,2]
[368737239,1751337047271,-460.0,0.00020644,2]
[368737242,1751337047281,-1189.54,0.00020644,2]
[368737244,1751337047292,-151.0,0.00020645,2]
[368737246,1751337047301,-151.0,0.00020645,2]
[368737248,1751337047311,-151.0,0.00020645,2]
[368737250,1751337047322,-151.432419,0.00020645,2]
[368737252,1751337047331,-154.208591,0.00020645,2]
[368737254,1751337047340,-151.0,0.00020645,2]
[368737256,1751337047349,-151.0,0.00020645,2]
[368737258,1751337047358,-460.0,0.00020646,2]
[368737260,1751337047368,-1500.0,0.0002068,2]
[368737262,1751337047377,-151.0,0.000207,3]
[368737264,1751337047387,-3653.97220895,0.00020762,3]
[368737266,1751337047396,-151.0,0.0002077,2]
[368737268,1751337047405,-165.255691,0.0002077,2]
[368737270,1751337047414,-213.87551669,0.0002077,3]
[368737272,1751337047423,-847.53272281,0.0002077,3]
[368737274,1751337047433,-12571.40790328,0.0002077,3]
[368737276,1751337047442,-160.0,0.0002077,3]
[368737278,1751337047452,-160.0,0.0002077,3]
[368737280,1751337047461,-1297.73,0.00020915,2]
[368737282,1751337047471,-303.76682082,0.00020915,2]
[368737284,1751337047480,-671.74,0.00020916,2]
[368737286,1751337047489,-1712.85,0.00020916,2]
[368737288,1751337047499,-1642.06,0.00020916,2]